[Event "Early-Titled-Tuesday-Blitz-September-12-2023"]
[Site "Chess.com"]
[Date "2023.09.12"]
[Round "3"]
[White "AleksandrAleksikov"]
[Black "BigAl"]
[Result "0-1"]
[WhiteElo "2280"]
[BlackElo "2546"]
[TimeControl "180+1"]
[EndTime "8:28:06 PDT"]
[Termination "BigAl won on time"]

1. e4 {[%clk 0:03:00.9]} 1... c6 {[%clk 0:02:59.9]} 2. Nf3 {[%clk 0:03:00.8]}
2... d5 {[%clk 0:02:58.9]} 3. Nc3 {[%clk 0:03:01.4]} 3... dxe4 {[%clk 0:02:59]}
4. Nxe4 {[%clk 0:03:00.8]} 4... Nf6 {[%clk 0:02:59.9]} 5. d3 {[%clk 0:02:53.5]}
5... g6 {[%clk 0:02:45.4]} 6. Bg5 {[%clk 0:02:45.5]} 6... Bg7 {[%clk 0:02:44.4]}
7. Nxf6+ {[%clk 0:02:40.4]} 7... exf6 {[%clk 0:02:44.2]} 8. Bd2 {[%clk
0:02:39.9]} 8... O-O {[%clk 0:02:43.9]} 9. Be2 {[%clk 0:02:38.1]} 9... Re8
{[%clk 0:02:28.2]} 10. O-O {[%clk 0:02:37.3]} 10... Nd7 {[%clk 0:02:28.7]} 11.
Re1 {[%clk 0:02:36.2]} 11... Nb6 {[%clk 0:02:25.7]} 12. a4 {[%clk 0:02:22.2]}
12... Nd5 {[%clk 0:02:14]} 13. Bf1 {[%clk 0:02:18.1]} 13... f5 {[%clk
0:01:56.8]} 14. Bg5 {[%clk 0:02:02.1]} 14... Nf6 {[%clk 0:01:46.8]} 15. Rxe8+
{[%clk 0:01:54.3]} 15... Qxe8 {[%clk 0:01:47.2]} 16. Qd2 {[%clk 0:01:52]} 16...
Qf8 {[%clk 0:01:30.2]} 17. Re1 {[%clk 0:01:42.3]} 17... Be6 {[%clk 0:01:19]} 18.
Nd4 {[%clk 0:01:36.4]} 18... Bd7 {[%clk 0:01:18.9]} 19. Nb3 {[%clk 0:01:34.7]}
19... Nd5 {[%clk 0:00:54.3]} 20. c3 {[%clk 0:01:07]} 20... h6 {[%clk 0:00:53.4]}
21. Be3 {[%clk 0:01:02.8]} 21... Nxe3 {[%clk 0:00:52.1]} 22. Qxe3 {[%clk
0:00:57.4]} 22... Re8 {[%clk 0:00:46.3]} 23. Qd2 {[%clk 0:00:57.3]} 23... c5
{[%clk 0:00:43.2]} 24. a5 {[%clk 0:00:46.4]} 24... Ba4 {[%clk 0:00:41.9]} 25.
Rxe8 {[%clk 0:00:43.2]} 25... Bxe8 {[%clk 0:00:42.1]} 26. Qe3 {[%clk 0:00:39.6]}
26... b6 {[%clk 0:00:42.2]} 27. axb6 {[%clk 0:00:37.9]} 27... axb6 {[%clk
0:00:42]} 28. Nd2 {[%clk 0:00:36.9]} 28... Bc6 {[%clk 0:00:29]} 29. Nc4 {[%clk
0:00:32.8]} 29... b5 {[%clk 0:00:27.3]} 30. Ne5 {[%clk 0:00:32.5]} 30... Ba8
{[%clk 0:00:24.4]} 31. Nd7 {[%clk 0:00:29]} 31... Qd8 {[%clk 0:00:20.5]} 32.
Nxc5 {[%clk 0:00:28]} 32... Kh7 {[%clk 0:00:20.9]} 33. d4 {[%clk 0:00:26.1]}
33... Qd5 {[%clk 0:00:19]} 34. f3 {[%clk 0:00:25.3]} 34... Qa2 {[%clk
0:00:18.7]} 35. b4 {[%clk 0:00:20.6]} 35... Bd5 {[%clk 0:00:14.5]} 36. Bxb5
{[%clk 0:00:14.6]} 36... Qb1+ {[%clk 0:00:14.4]} 37. Kf2 {[%clk 0:00:11.5]}
37... h5 {[%clk 0:00:14]} 38. h4 {[%clk 0:00:08.3]} 38... Bh6 {[%clk 0:00:13.5]}
39. Qd3 {[%clk 0:00:07.3]} 39... Qc1 {[%clk 0:00:10.5]} 0-1

[Event "Early-Titled-Tuesday-Blitz-September-12-2023"]
[Site "Chess.com"]
[Date "2023.09.12"]
[Round "3"]
[White "kleopl"]
[Black "RobertoJBM"]
[Result "0-1"]
[WhiteElo "2509"]
[BlackElo "2816"]
[TimeControl "180+1"]
[EndTime "8:28:07 PDT"]
[Termination "RobertoJBM won by resignation"]

1. e4 {[%clk 0:03:00.9]} 1... c6 {[%clk 0:02:55.3]} 2. Nc3 {[%clk 0:03:00.4]}
2... d5 {[%clk 0:02:54.2]} 3. Qe2 {[%clk 0:03:00.7]} 3... dxe4 {[%clk
0:02:52.6]} 4. Nxe4 {[%clk 0:03:01.6]} 4... Bf5 {[%clk 0:02:52.5]} 5. g3 {[%clk
0:02:59.8]} 5... e6 {[%clk 0:02:51]} 6. Bg2 {[%clk 0:02:59.5]} 6... Nd7 {[%clk
0:02:51.3]} 7. d4 {[%clk 0:02:58.1]} 7... Ngf6 {[%clk 0:02:51.4]} 8. Nxf6+
{[%clk 0:02:57.1]} 8... Nxf6 {[%clk 0:02:52.3]} 9. c3 {[%clk 0:02:56.6]} 9...
Be7 {[%clk 0:02:51]} 10. Nf3 {[%clk 0:02:56.8]} 10... h6 {[%clk 0:02:51.5]} 11.
O-O {[%clk 0:02:56.9]} 11... O-O {[%clk 0:02:51.8]} 12. Ne5 {[%clk 0:02:56.6]}
12... Nd7 {[%clk 0:02:51.1]} 13. Bf4 {[%clk 0:02:48.3]} 13... Nxe5 {[%clk
0:02:51]} 14. Bxe5 {[%clk 0:02:45.6]} 14... Bd6 {[%clk 0:02:49.7]} 15. b4 {[%clk
0:02:37.8]} 15... Qc7 {[%clk 0:02:45.5]} 16. Rfe1 {[%clk 0:02:37]} 16... Rfd8
{[%clk 0:02:38.4]} 17. Bxd6 {[%clk 0:02:29.6]} 17... Rxd6 {[%clk 0:02:37.4]} 18.
Qe5 {[%clk 0:02:28.4]} 18... Rc8 {[%clk 0:02:36.5]} 19. a4 {[%clk 0:02:23.7]}
19... a6 {[%clk 0:02:32.2]} 20. a5 {[%clk 0:02:23.5]} 20... Rd7 {[%clk
0:02:28.6]} 21. f4 {[%clk 0:02:03.8]} 21... Rcd8 {[%clk 0:02:21.9]} 22. Qxc7
{[%clk 0:02:00]} 22... Rxc7 {[%clk 0:02:21.7]} 23. Bf3 {[%clk 0:02:00.4]} 23...
Kf8 {[%clk 0:02:21]} 24. g4 {[%clk 0:01:55.8]} 24... Bd3 {[%clk 0:02:19.7]} 25.
Kf2 {[%clk 0:01:55.1]} 25... Ke7 {[%clk 0:01:56.2]} 26. Re5 {[%clk 0:01:50.1]}
26... f6 {[%clk 0:01:50]} 27. Re3 {[%clk 0:01:49.5]} 27... Bc4 {[%clk
0:01:49.3]} 28. Rae1 {[%clk 0:01:48.9]} 28... Kd6 {[%clk 0:01:49.4]} 29. h4
{[%clk 0:01:44.7]} 29... Re7 {[%clk 0:01:47]} 30. Kg3 {[%clk 0:01:43.8]} 30...
Rde8 {[%clk 0:01:46]} 31. g5 {[%clk 0:01:42.4]} 31... hxg5 {[%clk 0:01:44.6]}
32. hxg5 {[%clk 0:01:43.3]} 32... fxg5 {[%clk 0:01:17.2]} 33. fxg5 {[%clk
0:01:44.2]} 33... Rf8 {[%clk 0:01:16.7]} 34. Bg4 {[%clk 0:01:40.4]} 34... g6
{[%clk 0:01:13.7]} 35. Rf3 {[%clk 0:01:33.8]} 35... Rxf3+ {[%clk 0:01:09.9]} 36.
Bxf3 {[%clk 0:01:34.7]} 36... e5 {[%clk 0:01:06.7]} 37. Kh4 {[%clk 0:00:31.1]}
37... Bd5 {[%clk 0:00:56.5]} 38. Bxd5 {[%clk 0:00:24.3]} 38... Kxd5 {[%clk
0:00:57.4]} 39. Kg4 {[%clk 0:00:22.2]} 39... e4 {[%clk 0:00:53.6]} 40. Re3
{[%clk 0:00:20.6]} 40... Rf7 {[%clk 0:00:52]} 41. Kg3 {[%clk 0:00:20.7]} 41...
Rf5 {[%clk 0:00:51.1]} 42. Kg4 {[%clk 0:00:20.7]} 42... Rf1 {[%clk 0:00:50.2]}
43. Kh4 {[%clk 0:00:20.4]} 43... Rf3 {[%clk 0:00:38.6]} 44. Rxf3 {[%clk
0:00:19.5]} 44... exf3 {[%clk 0:00:39.5]} 45. Kg3 {[%clk 0:00:19.9]} 45... Ke4
{[%clk 0:00:29.7]} 46. Kf2 {[%clk 0:00:20]} 46... Kf4 {[%clk 0:00:30.3]} 47. c4
{[%clk 0:00:16.5]} 47... Kxg5 {[%clk 0:00:30.3]} 48. Kxf3 {[%clk 0:00:16.2]}
48... Kf5 {[%clk 0:00:30.8]} 49. Ke3 {[%clk 0:00:14.1]} 49... g5 {[%clk
0:00:31]} 50. Kf3 {[%clk 0:00:14.2]} 50... g4+ {[%clk 0:00:31]} 51. Kg3 {[%clk
0:00:14.4]} 51... Ke4 {[%clk 0:00:31.5]} 52. d5 {[%clk 0:00:14.6]} 52... cxd5
{[%clk 0:00:31.3]} 53. cxd5 {[%clk 0:00:15.3]} 53... Kxd5 {[%clk 0:00:31.9]} 0-1

[Event "Early-Titled-Tuesday-Blitz-September-12-2023"]
[Site "Chess.com"]
[Date "2023.09.12"]
[Round "3"]
[White "Anton_Demchenko"]
[Black "attack2mateU"]
[Result "0-1"]
[WhiteElo "2949"]
[BlackElo "2740"]
[TimeControl "180+1"]
[EndTime "8:28:09 PDT"]
[Termination "attack2mateU won by resignation"]

1. e4 {[%clk 0:02:48.4]} 1... c5 {[%clk 0:02:59.3]} 2. Nf3 {[%clk 0:02:46]} 2...
d6 {[%clk 0:02:59.6]} 3. d4 {[%clk 0:02:40.5]} 3... cxd4 {[%clk 0:03:00.5]} 4.
Nxd4 {[%clk 0:02:41.3]} 4... Nf6 {[%clk 0:03:00.7]} 5. Nc3 {[%clk 0:02:41.8]}
5... a6 {[%clk 0:03:01.1]} 6. Bd3 {[%clk 0:02:42.3]} 6... e5 {[%clk 0:03:00.7]}
7. Nde2 {[%clk 0:02:42.4]} 7... Be7 {[%clk 0:02:59.4]} 8. O-O {[%clk 0:02:43]}
8... O-O {[%clk 0:02:59.9]} 9. h3 {[%clk 0:02:38.1]} 9... Nc6 {[%clk 0:02:50.7]}
10. a3 {[%clk 0:02:34.5]} 10... Be6 {[%clk 0:02:45.3]} 11. Nd5 {[%clk
0:02:34.5]} 11... Nxd5 {[%clk 0:02:42.5]} 12. exd5 {[%clk 0:02:35.4]} 12... Bxd5
{[%clk 0:02:43.2]} 13. Bxh7+ {[%clk 0:02:35.5]} 13... Kxh7 {[%clk 0:02:44.1]}
14. Qxd5 {[%clk 0:02:35.9]} 14... Qa5 {[%clk 0:02:34.1]} 15. Qxa5 {[%clk
0:02:19.5]} 15... Nxa5 {[%clk 0:02:35]} 16. Nc3 {[%clk 0:02:20.2]} 16... Rfc8
{[%clk 0:02:26]} 17. Nd5 {[%clk 0:02:14.4]} 17... Bd8 {[%clk 0:02:26]} 18. c3
{[%clk 0:02:15.1]} 18... Nc4 {[%clk 0:02:11.9]} 19. Rd1 {[%clk 0:02:06]} 19...
a5 {[%clk 0:01:53.7]} 20. a4 {[%clk 0:02:00.4]} 20... Ra6 {[%clk 0:01:53.2]} 21.
b3 {[%clk 0:01:58.6]} 21... Nb6 {[%clk 0:01:53]} 22. Ne3 {[%clk 0:01:50.6]}
22... Rxc3 {[%clk 0:01:49.7]} 23. Rb1 {[%clk 0:01:43.5]} 23... Rc6 {[%clk
0:01:37.3]} 24. Ba3 {[%clk 0:01:37.4]} 24... Bg5 {[%clk 0:01:24.9]} 25. Nf5
{[%clk 0:00:53.9]} 25... d5 {[%clk 0:01:22.7]} 26. Re1 {[%clk 0:00:45.9]} 26...
Bf6 {[%clk 0:00:57.3]} 27. Ne3 {[%clk 0:00:45.8]} 27... d4 {[%clk 0:00:48.1]}
28. Ng4 {[%clk 0:00:45.8]} 28... Nd7 {[%clk 0:00:43.6]} 29. f3 {[%clk
0:00:44.7]} 29... Rab6 {[%clk 0:00:39.8]} 30. b4 {[%clk 0:00:29.7]} 30... Rc3
{[%clk 0:00:36.4]} 31. Bb2 {[%clk 0:00:29.2]} 31... Rb3 {[%clk 0:00:35.3]} 32.
b5 {[%clk 0:00:28.1]} 32... Nc5 {[%clk 0:00:29]} 33. Ba1 {[%clk 0:00:28.1]}
33... Rxb1 {[%clk 0:00:27.8]} 34. Rxb1 {[%clk 0:00:29]} 34... Nxa4 {[%clk
0:00:28]} 35. f4 {[%clk 0:00:27.6]} 35... Nc3 {[%clk 0:00:24]} 36. Bxc3 {[%clk
0:00:10.7]} 36... dxc3 {[%clk 0:00:24.9]} 37. Rc1 {[%clk 0:00:08.6]} 37... exf4
{[%clk 0:00:23.2]} 38. Nxf6+ {[%clk 0:00:09.3]} 38... gxf6 {[%clk 0:00:22.5]}
39. Rxc3 {[%clk 0:00:10]} 39... Rxb5 {[%clk 0:00:23]} 40. Kf2 {[%clk 0:00:06.6]}
40... a4 {[%clk 0:00:22.3]} 41. Rc4 {[%clk 0:00:06.7]} 41... Ra5 {[%clk
0:00:21.2]} 42. Rc2 {[%clk 0:00:01.4]} 42... a3 {[%clk 0:00:21.5]} 43. Ra2
{[%clk 0:00:02]} 43... b5 {[%clk 0:00:22]} 44. Ke2 {[%clk 0:00:02]} 44... b4
{[%clk 0:00:22.6]} 45. Kd3 {[%clk 0:00:02.8]} 45... b3 {[%clk 0:00:23.2]} 46.
Ra1 {[%clk 0:00:03.5]} 46... b2 {[%clk 0:00:23.7]} 0-1

[Event "Early-Titled-Tuesday-Blitz-September-12-2023"]
[Site "Chess.com"]
[Date "2023.09.12"]
[Round "3"]
[White "Gogolev_Artemy"]
[Black "sqmorr"]
[Result "0-1"]
[WhiteElo "2399"]
[BlackElo "2277"]
[TimeControl "180+1"]
[EndTime "8:28:10 PDT"]
[Termination "sqmorr won on time"]

1. d4 {[%clk 0:03:00.9]} 1... Nf6 {[%clk 0:02:59]} 2. Bf4 {[%clk 0:03:00.2]}
2... d5 {[%clk 0:02:57.5]} 3. e3 {[%clk 0:02:59.9]} 3... c5 {[%clk 0:02:55.3]}
4. Nf3 {[%clk 0:02:58.5]} 4... cxd4 {[%clk 0:02:54]} 5. exd4 {[%clk 0:02:55.9]}
5... Nc6 {[%clk 0:02:53.1]} 6. c3 {[%clk 0:02:55.8]} 6... Bg4 {[%clk 0:02:51.5]}
7. Nbd2 {[%clk 0:02:46.8]} 7... e6 {[%clk 0:02:46.8]} 8. Qb3 {[%clk 0:02:46]}
8... Qc8 {[%clk 0:02:32]} 9. Ne5 {[%clk 0:02:44.9]} 9... Bf5 {[%clk 0:02:29]}
10. Qa4 {[%clk 0:02:36.5]} 10... a6 {[%clk 0:02:24.1]} 11. Nxc6 {[%clk
0:02:31.3]} 11... Qxc6 {[%clk 0:02:20.1]} 12. Qxc6+ {[%clk 0:02:28.6]} 12...
bxc6 {[%clk 0:02:19.5]} 13. Nb3 {[%clk 0:02:16.7]} 13... a5 {[%clk 0:02:14]} 14.
a4 {[%clk 0:01:38.1]} 14... Bc2 {[%clk 0:02:11.9]} 15. Nc1 {[%clk 0:01:22.4]}
15... Be7 {[%clk 0:02:01.4]} 16. Kd2 {[%clk 0:01:13.5]} 16... Bg6 {[%clk
0:01:58.3]} 17. f3 {[%clk 0:01:13.5]} 17... O-O {[%clk 0:01:53.7]} 18. Bd3
{[%clk 0:01:00]} 18... Nd7 {[%clk 0:01:48.2]} 19. Bf5 {[%clk 0:00:58.1]} 19...
Bxf5 {[%clk 0:01:45.2]} 20. g4 {[%clk 0:00:58.2]} 20... Bg6 {[%clk 0:01:44.2]}
21. h4 {[%clk 0:00:58.5]} 21... h5 {[%clk 0:01:43.3]} 22. Ne2 {[%clk 0:00:57.2]}
22... c5 {[%clk 0:01:41.4]} 23. Ng3 {[%clk 0:00:55.9]} 23... cxd4 {[%clk
0:01:40]} 24. gxh5 {[%clk 0:00:54.6]} 24... dxc3+ {[%clk 0:01:39.5]} 25. bxc3
{[%clk 0:00:55.5]} 25... Bh7 {[%clk 0:01:38.4]} 26. Rhg1 {[%clk 0:00:53.9]}
26... e5 {[%clk 0:01:37.5]} 27. Be3 {[%clk 0:00:51.2]} 27... Bxh4 {[%clk
0:01:36.4]} 28. Ne2 {[%clk 0:00:37.6]} 28... Rfd8 {[%clk 0:01:33.3]} 29. Rg4
{[%clk 0:00:37]} 29... Bf6 {[%clk 0:01:31.3]} 30. Rag1 {[%clk 0:00:36.6]} 30...
d4 {[%clk 0:01:30]} 31. cxd4 {[%clk 0:00:34.8]} 31... Nb6 {[%clk 0:01:26.7]} 32.
Bg5 {[%clk 0:00:33.9]} 32... Kf8 {[%clk 0:01:17.7]} 33. Bxf6 {[%clk 0:00:30.6]}
33... gxf6 {[%clk 0:01:17.1]} 34. Rg7 {[%clk 0:00:30.2]} 34... Bf5 {[%clk
0:01:15.6]} 35. Ke3 {[%clk 0:00:22.7]} 35... exd4+ {[%clk 0:01:13.7]} 36. Kf4
{[%clk 0:00:20.6]} 36... Be6 {[%clk 0:01:13]} 37. h6 {[%clk 0:00:18.4]} 37...
Ke7 {[%clk 0:01:11.6]} 38. h7 {[%clk 0:00:18]} 38... Rh8 {[%clk 0:01:06.5]} 39.
Nxd4 {[%clk 0:00:18.1]} 39... Rae8 {[%clk 0:01:01.9]} 40. Rb1 {[%clk 0:00:04.3]}
40... Nd5+ {[%clk 0:01:00]} 41. Kg3 {[%clk 0:00:04.5]} 41... Kd6 {[%clk
0:00:57.6]} 42. Rb7 {[%clk 0:00:01.9]} 42... Ne7 {[%clk 0:00:52.7]} 43. Nb5+
{[%clk 0:00:01.5]} 43... Ke5 {[%clk 0:00:51.4]} 44. f4+ {[%clk 0:00:01.4]} 44...
Ke4 {[%clk 0:00:48.6]} 45. Nd6+ {[%clk 0:00:01.8]} 45... Kd3 {[%clk 0:00:48.4]}
46. Nxf7 {[%clk 0:00:02.2]} 46... Bxf7 {[%clk 0:00:47.1]} 47. Rxf7 {[%clk
0:00:02.1]} 47... Nf5+ {[%clk 0:00:46.7]} 48. Kf3 {[%clk 0:00:02.8]} 48... Re3+
{[%clk 0:00:45.6]} 49. Kg4 {[%clk 0:00:03.2]} 49... Nh6+ {[%clk 0:00:45.5]} 50.
Kh5 {[%clk 0:00:03.2]} 50... Nxf7 {[%clk 0:00:45.3]} 51. Rxf7 {[%clk 0:00:03.5]}
51... Rh3+ {[%clk 0:00:45.2]} 52. Kg6 {[%clk 0:00:03.6]} 52... Ke4 {[%clk
0:00:44.3]} 0-1

[Event "Early-Titled-Tuesday-Blitz-September-12-2023"]
[Site "Chess.com"]
[Date "2023.09.12"]
[Round "3"]
[White "zano2023"]
[Black "whiteglovethief"]
[Result "0-1"]
[WhiteElo "2083"]
[BlackElo "2533"]
[TimeControl "180+1"]
[EndTime "8:28:13 PDT"]
[Termination "whiteglovethief won by resignation"]

1. d4 {[%clk 0:03:00.9]} 1... Nf6 {[%clk 0:02:59.1]} 2. Nd2 {[%clk 0:02:59.5]}
2... c5 {[%clk 0:02:59.1]} 3. e3 {[%clk 0:02:59.4]} 3... d5 {[%clk 0:02:59]} 4.
Ngf3 {[%clk 0:02:59.2]} 4... Nc6 {[%clk 0:02:59.6]} 5. c3 {[%clk 0:02:59.8]}
5... e6 {[%clk 0:02:59.4]} 6. Bd3 {[%clk 0:02:59.6]} 6... Bd6 {[%clk 0:03:00]}
7. O-O {[%clk 0:02:59.6]} 7... O-O {[%clk 0:02:59.7]} 8. dxc5 {[%clk 0:02:59.7]}
8... Bxc5 {[%clk 0:02:59.8]} 9. e4 {[%clk 0:03:00.4]} 9... dxe4 {[%clk
0:02:56.7]} 10. Nxe4 {[%clk 0:03:01.3]} 10... Be7 {[%clk 0:02:56.4]} 11. Qe2
{[%clk 0:03:01]} 11... Qa5 {[%clk 0:02:53.7]} 12. Bg5 {[%clk 0:02:42.8]} 12...
Nxe4 {[%clk 0:02:47.9]} 13. Qxe4 {[%clk 0:02:42.3]} 13... g6 {[%clk 0:02:42.4]}
14. Qh4 {[%clk 0:02:41.6]} 14... f6 {[%clk 0:02:31.7]} 15. Bh6 {[%clk
0:02:39.4]} 15... Rd8 {[%clk 0:02:31.4]} 16. Rfd1 {[%clk 0:02:38.2]} 16... f5
{[%clk 0:02:13.6]} 17. Bg5 {[%clk 0:02:35.9]} 17... Qc7 {[%clk 0:02:10.7]} 18.
Bc4 {[%clk 0:02:28.4]} 18... Re8 {[%clk 0:01:51.7]} 19. Bb3 {[%clk 0:02:22]}
19... Na5 {[%clk 0:01:45]} 20. Bxe7 {[%clk 0:02:13.5]} 20... Qxe7 {[%clk
0:01:44.2]} 21. Qxe7 {[%clk 0:02:08.8]} 21... Rxe7 {[%clk 0:01:45.1]} 22. Rd8+
{[%clk 0:02:08.6]} 22... Kg7 {[%clk 0:01:44.9]} 23. Rad1 {[%clk 0:02:08.4]}
23... Nxb3 {[%clk 0:01:44.5]} 24. axb3 {[%clk 0:02:07.6]} 24... b6 {[%clk
0:01:45]} 25. Ne5 {[%clk 0:02:01.4]} 25... Bb7 {[%clk 0:01:42.7]} 26. R8d7
{[%clk 0:01:54.9]} 26... Re8 {[%clk 0:01:40.9]} 27. f4 {[%clk 0:01:52.1]} 27...
Kf6 {[%clk 0:01:39.6]} 28. h3 {[%clk 0:01:38.9]} 28... a5 {[%clk 0:01:34.1]} 29.
Kf2 {[%clk 0:01:37.8]} 29... Bd5 {[%clk 0:01:33.6]} 30. Rxe7 {[%clk 0:01:35.8]}
30... Rxe7 {[%clk 0:01:29.9]} 31. c4 {[%clk 0:01:36.2]} 31... Be4 {[%clk
0:01:29.5]} 32. Rd2 {[%clk 0:01:33.8]} 32... g5 {[%clk 0:01:28.6]} 33. Nd7+
{[%clk 0:01:29.8]} 33... Kg6 {[%clk 0:01:26.9]} 34. fxg5 {[%clk 0:01:26.1]}
34... Kxg5 {[%clk 0:01:26.3]} 35. Nxb6 {[%clk 0:01:22.9]} 35... Rb7 {[%clk
0:01:26.3]} 36. Rd6 {[%clk 0:01:22.4]} 36... Kf6 {[%clk 0:01:17.2]} 37. Ke3
{[%clk 0:01:13.4]} 37... Bxg2 {[%clk 0:01:07.6]} 38. h4 {[%clk 0:01:12.7]} 38...
Ke5 {[%clk 0:01:00.3]} 39. c5 {[%clk 0:01:12.7]} 39... Bd5 {[%clk 0:00:52.4]}
40. Nd7+ {[%clk 0:01:07.5]} 40... Rxd7 {[%clk 0:00:51.9]} 41. Rxd7 {[%clk
0:01:07.1]} 41... f4+ {[%clk 0:00:52.4]} 42. Kf2 {[%clk 0:01:06.3]} 42... h5
{[%clk 0:00:50.2]} 43. Ra7 {[%clk 0:01:02.4]} 43... Kd4 {[%clk 0:00:45.4]} 44.
Rxa5 {[%clk 0:01:02.3]} 44... e5 {[%clk 0:00:45.6]} 45. Ra4+ {[%clk 0:01:02.1]}
45... Kxc5 {[%clk 0:00:38.4]} 46. b4+ {[%clk 0:00:59.5]} 46... Kc4 {[%clk
0:00:35.2]} 47. b3+ {[%clk 0:00:56.4]} 47... Kxb3 {[%clk 0:00:30]} 48. Ra5
{[%clk 0:00:56]} 48... Kc4 {[%clk 0:00:30.3]} 49. Rc5+ {[%clk 0:00:55]} 49...
Kd4 {[%clk 0:00:30.1]} 50. Rc1 {[%clk 0:00:52.6]} 50... e4 {[%clk 0:00:28]} 51.
b5 {[%clk 0:00:46.3]} 51... e3+ {[%clk 0:00:27.5]} 52. Ke1 {[%clk 0:00:43.9]}
52... f3 {[%clk 0:00:26.5]} 53. Rd1+ {[%clk 0:00:40.7]} 53... Ke4 {[%clk
0:00:23.1]} 54. Rc1 {[%clk 0:00:34.9]} 54... Kd4 {[%clk 0:00:20.6]} 55. Rd1+
{[%clk 0:00:34.4]} 55... Kc5 {[%clk 0:00:19.1]} 56. Rd3 {[%clk 0:00:32.6]} 56...
f2+ {[%clk 0:00:18.7]} 0-1

[Event "Early-Titled-Tuesday-Blitz-September-12-2023"]
[Site "Chess.com"]
[Date "2023.09.12"]
[Round "3"]
[White "HrvojeZagreb"]
[Black "jaskol95"]
[Result "1/2-1/2"]
[WhiteElo "2264"]
[BlackElo "2537"]
[TimeControl "180+1"]
[EndTime "8:28:15 PDT"]
[Termination "Game drawn by repetition"]

1. f4 {[%clk 0:02:53.1]} 1... d5 {[%clk 0:02:56.9]} 2. b3 {[%clk 0:02:52.1]}
2... e5 {[%clk 0:02:46.2]} 3. fxe5 {[%clk 0:02:43.1]} 3... Qh4+ {[%clk
0:02:43.6]} 4. g3 {[%clk 0:02:40.3]} 4... Qd4 {[%clk 0:02:43.9]} 5. c3 {[%clk
0:02:31.4]} 5... Qxe5 {[%clk 0:02:43.8]} 6. Nf3 {[%clk 0:02:31.1]} 6... Qd6
{[%clk 0:02:42.1]} 7. d4 {[%clk 0:02:29.6]} 7... Nf6 {[%clk 0:02:39.6]} 8. Bf4
{[%clk 0:02:29.2]} 8... Qe6 {[%clk 0:02:31.4]} 9. Bg2 {[%clk 0:01:55.8]} 9... c6
{[%clk 0:02:30]} 10. O-O {[%clk 0:01:54.7]} 10... Bd6 {[%clk 0:02:28.7]} 11. Ng5
{[%clk 0:01:43.8]} 11... Qe7 {[%clk 0:02:28.1]} 12. Bxd6 {[%clk 0:01:40]} 12...
Qxd6 {[%clk 0:02:28]} 13. e4 {[%clk 0:01:40.4]} 13... dxe4 {[%clk 0:02:22.6]}
14. Nxe4 {[%clk 0:01:38.7]} 14... Nxe4 {[%clk 0:02:21.1]} 15. Bxe4 {[%clk
0:01:39.6]} 15... O-O {[%clk 0:02:16.3]} 16. Nd2 {[%clk 0:01:28.2]} 16... Nd7
{[%clk 0:02:16.4]} 17. Bd3 {[%clk 0:01:15.2]} 17... Nf6 {[%clk 0:02:14.4]} 18.
Ne4 {[%clk 0:01:08.3]} 18... Nxe4 {[%clk 0:02:14.6]} 19. Bxe4 {[%clk 0:01:09.2]}
19... g6 {[%clk 0:02:12]} 20. Qf3 {[%clk 0:01:03.3]} 20... Bh3 {[%clk
0:02:07.5]} 21. Rf2 {[%clk 0:00:54.8]} 21... Be6 {[%clk 0:02:07.2]} 22. h4
{[%clk 0:00:44.4]} 22... Bd5 {[%clk 0:01:57.1]} 23. Bxd5 {[%clk 0:00:41.5]}
23... Qxd5 {[%clk 0:01:58]} 24. Re1 {[%clk 0:00:38.6]} 24... Rae8 {[%clk
0:01:53.6]} 25. Rxe8 {[%clk 0:00:35.7]} 25... Rxe8 {[%clk 0:01:53.9]} 26. Qxd5
{[%clk 0:00:30.7]} 26... cxd5 {[%clk 0:01:54.8]} 27. Kf1 {[%clk 0:00:30.3]}
27... Re3 {[%clk 0:01:52.8]} 28. c4 {[%clk 0:00:21.7]} 28... dxc4 {[%clk
0:01:45]} 29. bxc4 {[%clk 0:00:22.6]} 29... Rxg3 {[%clk 0:01:44.1]} 30. Ke2
{[%clk 0:00:18.9]} 30... Kf8 {[%clk 0:01:41.7]} 31. h5 {[%clk 0:00:14.9]} 31...
Ke7 {[%clk 0:01:37.4]} 32. hxg6 {[%clk 0:00:14.6]} 32... fxg6 {[%clk 0:01:38.3]}
33. Kd2 {[%clk 0:00:15]} 33... h5 {[%clk 0:01:37.8]} 34. d5 {[%clk 0:00:13.4]}
34... h4 {[%clk 0:01:34.6]} 35. c5 {[%clk 0:00:10]} 35... h3 {[%clk 0:01:21]}
36. d6+ {[%clk 0:00:10.4]} 36... Ke8 {[%clk 0:01:06]} 37. Ke1 {[%clk 0:00:05.5]}
37... Rg1+ {[%clk 0:00:50.8]} 38. Kd2 {[%clk 0:00:04.7]} 38... Rg2 {[%clk
0:00:50.1]} 39. Ke3 {[%clk 0:00:05]} 39... Rxf2 {[%clk 0:00:50.2]} 40. Kxf2
{[%clk 0:00:05.2]} 40... g5 {[%clk 0:00:50.5]} 41. Kg3 {[%clk 0:00:05.3]} 41...
g4 {[%clk 0:00:50.8]} 42. a4 {[%clk 0:00:05.3]} 42... Kd7 {[%clk 0:00:49.9]} 43.
a5 {[%clk 0:00:05.8]} 43... Kc6 {[%clk 0:00:44.4]} 44. Kh2 {[%clk 0:00:05.6]}
44... Kd7 {[%clk 0:00:15.8]} 45. Kg3 {[%clk 0:00:05.5]} 45... Ke6 {[%clk
0:00:15.6]} 46. Kh2 {[%clk 0:00:04.8]} 46... Kd7 {[%clk 0:00:14.8]} 47. Kg3
{[%clk 0:00:05.1]} 1/2-1/2